Cogmind - Beta 13 @@@ ROGUE MODE // 2024.04.27 @ 06:09:18 Player: Millea Result: Destroyed by Y-54 Guardian with Gatling Laser Performance ------------- Evolutions (3) 1500 Regions Visited (11) 2200 Robots Destroyed (150) 750 Value Destroyed (7201) 7201 Prototype IDs (33) 660 Alien Tech Used (0) 0 Bonus (4438) 4438 TOTAL SCORE: 16749 Bonus ------- High Alert Combat Kills 1905 Follower Combat Kills 600 Entered Garrisons 400 Used RIF Installer 1500 Aligned with FarCom 300 Friendly Fire -267 Cogmind --------- Core Integrity 0/700 Matter 185/300 Energy 31/100 System Corruption 13% Temperature Cool (6) Movement Core (800) Ox15 Location -7/Factory Parts ------- > --- POWER (1) -------- (None) > --- PROPULSION (3) --- Biomechanical Wings > --- UTILITY (7) ------ High-capacity Storage Unit Improved Power Shielding Relay Coupler [NC] (7) > --- WEAPON (2) ------- Gauss Rifle > --- INVENTORY (20) --- Cold Fusion Reactor Cold Fusion Reactor Improved Cooling System Relay Coupler [NC] (28) Relay Coupler [NC] (22) Relay Coupler [NC] (28) Relay Coupler [NC] (22) Variable Charge Gun Cooled Proton Cannon Ion Cannon Compact Ion Cannon Compact Ion Cannon YOLO Cannon Rocket Array Rocket Array Datajack Peak State ------------ > --- POWER ------------ Cold Fusion Reactor > --- PROPULSION ------- Antigrav System VTOL Module Biomechanical Wings > --- UTILITY ---------- Experimental Heat Sink Experimental Heat Sink Experimental Heat Sink Experimental Heat Sink High-capacity Storage Unit Improved Transmission Jammer System Shield > --- WEAPON ----------- Compact Ion Cannon Compact Ion Cannon > --- INVENTORY -------- Cold Fusion Reactor Cold Fusion Reactor Improved Cooling System Improved Cooling System Improved Cooling System Relay Coupler [NC] Relay Coupler [NC] Improved Trap Extractor Gatling Laser Variable Charge Gun Cooled Proton Cannon Cooled Proton Cannon Ion Cannon YOLO Cannon Gauss Rifle Rocket Array Rocket Array Datajack [Rating: 79] Favorites ----------- Power Heavy Ion Engine Engine Heavy Ion Engine Power Core Neutrino Core Reactor Cold Fusion Reactor Propulsion Light Treads Treads Light Treads Leg Aluminum Leg Wheel Compact Wheel Hover Unit Antigrav System Flight Unit Biomechanical Wings Utility Experimental Heat Sink Device Experimental Heat Sink Storage High-capacity Storage Unit Processor Improved Terrain Scan Processor Hackware System Shield Protection Improved Utility Shielding Weapon Compact Ion Cannon Energy Gun Medium Laser Energy Cannon Compact Ion Cannon Ballistic Gun Heavy Assault Rifle Ballistic Cannon Assault Cannon Launcher Rocket Array Special Melee Weapon Datajack Build | -11 -10 -10 -9 -9 -9 -8 -8 -8 -7 -7 -7 ------- Run | Yrd Mat Min Mat Min Exi Min Mat Gar Fac Gar Fac Slots Evolved 6 | . . . 2 . . . 2 . 2 . . Power . | . . . . . . . . . . . . Propulsion 1 | . . . 1 . . . . . . . . Utility 5 | . . . 1 . . . 2 . 2 . . Weapon . | . . . . . . . . . . . . Parts Attached 129 | 4 4 4 8 . . 2 12 16 39 23 17 Power 11 | 1 . 1 1 . . . . 3 3 . 2 Engine 5 | 1 . 1 1 . . . . 1 1 . . Core 3 | . . . . . . . . 2 1 . . Reactor 3 | . . . . . . . . . 1 . 2 Propulsion 34 | 2 . . 3 . . . 3 6 7 10 3 Treads 24 | 2 . . 3 . . . 3 6 6 4 . Leg 5 | . . . . . . . . . . 3 2 Wheel 1 | . . . . . . . . . . . 1 Hover 1 | . . . . . . . . . . 1 . Flight 3 | . . . . . . . . . 1 2 . Utility 41 | 1 2 3 2 . . . 4 3 17 5 4 Device 28 | . 1 2 1 . . . 3 3 12 4 2 Storage 4 | 1 1 1 . . . . . . 1 . . Processor 1 | . . . 1 . . . . . . . . Hackware 4 | . . . . . . . . . 2 1 1 Protection 4 | . . . . . . . 1 . 2 . 1 Artifact . | . . . . . . . . . . . . Weapon 43 | . 2 . 2 . . 2 5 4 12 8 8 Energy Gun 7 | . 1 . . . . . 1 1 3 . 1 Energy Cannon 12 | . . . . . . . . 1 2 6 3 Ballistic Gun 7 | . 1 . 1 . . 2 . 2 . . 1 Ballistic Cannon 8 | . . . 1 . . . 4 . 3 . . Launcher 6 | . . . . . . . . . 3 1 2 Special Weapon . | . . . . . . . . . . . . Impact Weapon . | . . . . . . . . . . . . Slashing Weapon . | . . . . . . . . . . . . Piercing Weapon . | . . . . . . . . . . . . Special Melee Weapon 3 | . . . . . . . . . 1 1 1 Unidentified Prototypes 10 | . . . 1 . . . . . 8 1 . Parts Lost 44 | . . . 2 . . . 6 8 11 4 13 Power 3 | . . . . . . . . 1 1 . 1 Propulsion 21 | . . . . . . . 3 5 5 3 5 Utility 13 | . . . . . . . 1 1 4 1 6 Weapon 7 | . . . 2 . . . 2 1 1 . 1 Highest Loss Streak 7 | . . . 2 . . . 2 3 3 1 7 To Critical Strikes . | . . . . . . . . . . . . Average Slot Usage (%) 95 | . 93 100 96 100 77 100 98 99 93 96 84 Engine 5 | . 14 14 11 11 11 11 9 4 1 . . Core 1 | . . . . . . . . 4 3 . . Reactor 1 | . . . . . . . . . 1 7 4 Treads 22 | . 28 28 31 33 33 33 26 27 21 5 11 Flight 1 | . . . . . . . . . . 7 7 Device 22 | . 4 14 11 11 11 11 19 21 30 32 24 Storage 9 | . 17 14 11 11 11 11 9 9 7 7 7 Processor 3 | . . . 9 11 11 11 9 5 . . . Hackware 2 | . . . . . . . . . 2 10 9 Protection 3 | . . . . . . . 6 9 8 . 2 Energy Gun 3 | . 14 14 6 . . . 1 2 2 . . Energy Cannon 4 | . . . . . . . . 3 5 14 12 Ballistic Gun 5 | . 14 14 11 11 . 22 3 6 1 . . Ballistic Cannon 3 | . . . 4 11 . . 12 5 2 . . Naked Turns . | . . . . . . . . . . . . Heaviest Build 77 | 10 23 55 56 55 55 55 62 68 77 64 64 Greatest Support 66 | 40 40 40 60 60 60 60 66 66 60 60 40 Greatest Overweight (x) 10 | 1 . 1 1 . . . 1 1 3 10 7 Average Overweight (x) . | . . . . . . . . . 1 2 1 Largest Inventory Capacity 20 | 8 10 20 20 20 20 20 20 20 20 20 20 Average Capacity 18 | 7 9 12 20 20 20 20 20 20 20 20 20 Most Carried 20 | 8 10 10 13 16 20 20 20 20 20 20 20 Average Carried 17 | 6 8 9 10 14 18 19 18 19 19 19 19 Final Capacity 20 | 8 10 20 20 20 20 20 20 20 20 20 20 Final Carried 20 | 8 10 10 13 16 20 20 20 20 20 20 17 Class Distribution -------------------- 39% | Mutant 28% | Scavenger-Mutant 15% | Bothacker-Mutant 13% | Skirmisher Dominant Class ---------------- Mutant | -10/Materials Mutant | -10/Mines Mutant | -9/Materials Mutant | -9/Mines Mutant | -9/Exiles Skirmisher | -8/Mines Skirmisher | -8/Materials Scavenger-Mutant | -8/Garrison Scavenger-Mutant | -7/Factory Mutant | -7/Garrison Bothacker-Mutant | -7/Factory Resources | -11 -10 -10 -9 -9 -9 -8 -8 -8 -7 -7 -7 ----------- Run | Yrd Mat Min Mat Min Exi Min Mat Gar Fac Gar Fac Matter Collected 3434 | 240 25 83 135 78 . 54 510 848 705 497 259 Remotely . | . . . . . . . . . . . . Salvage Created 5632 | . 93 159 305 56 . . 921 773 1634 716 975 Parts 280 | . 5 11 14 7 . . 53 24 92 39 35 Haulers Intercepted 7 | . 1 . 1 . . . 2 . 3 . . Recyclers Shooed 4 | . 1 . . . . . . . 1 . 2 Parts Field Recycled . | . . . . . . . . . . . . Retrieved Matter . | . . . . . . . . . . . . Parts Self-Destructed . | . . . . . . . . . . . . Prevented . | . . . . . . . . . . . . Kills | -11 -10 -10 -9 -9 -9 -8 -8 -8 -7 -7 -7 ------- Run | Yrd Mat Min Mat Min Exi Min Mat Gar Fac Gar Fac Combat Hostiles Destroyed 138 | . 1 8 6 4 . . 20 33 30 19 17 Guns 40 | . 1 8 6 2 . . 9 9 5 . . Cannons 66 | . . . . 2 . . 11 24 15 11 3 AOE 31 | . . . . . . . . . 9 8 14 Classes Destroyed 16 | . 2 1 1 1 . . 5 2 4 . . Worker 8 | . . . . 1 . . 1 . 3 . 3 Builder 8 | . . . . . . . 1 . 6 . 1 Hauler 7 | . 1 . 1 . . . 2 . 3 . . Recycler 8 | . . . . . . . 2 . 2 . 4 Mechanic 3 | . . . . . . . . . 2 . 1 Watcher 3 | . . . . . . . 1 . 2 . . Swarmer 24 | . . 6 . 4 . . 7 . . 7 . Grunt 44 | . 1 2 5 . . . 6 3 12 6 9 Brawler 4 | . . . . . . . . . 1 . 3 Duelist 5 | . . . 1 . . . 1 . 1 1 1 Protector 3 | . . . . . . . . . 2 . 1 Sentry 14 | . . . . . . . 5 1 4 3 1 Specialist 5 | . . . . . . . . . 3 2 . Hunter 2 | . . . . . . . 1 . 1 . . Programmer 12 | . . . . . . . . 3 6 1 2 Assembled 26 | . . . . . . . . 26 . . . Best Kill Streak 18 | . 2 3 3 5 . . 7 7 18 6 15 Combat Bots Only 10 | . 1 3 3 4 . . 4 7 10 6 10 Max Kills in Single Turn 11 | . 1 2 1 2 . . 1 1 11 3 6 Gunslinging 1 | . . 1 . . . . . . . . . Exploded 8 | . . . . . . . . . 8 3 4 Melee . | . . . . . . . . . . . . Uniques/NPCs Destroyed . | . . . . . . . . . . . . Combat | -11 -10 -10 -9 -9 -9 -8 -8 -8 -7 -7 -7 -------- Run | Yrd Mat Min Mat Min Exi Min Mat Gar Fac Gar Fac Hostile Shots Fired 772 | . . 49 38 33 . . 85 93 299 91 84 Missed 235 | . . 13 7 8 . . 21 28 108 29 21 Damage Taken 7592 | . . 414 425 208 . . 908 1186 2313 862 1276 Core 1025 | . . 64 21 37 . . 72 130 255 118 328 Absorbed by Shields . | . . . . . . . . . . . . Redirected to Shielding 117 | . . . . . . . 10 36 59 . 12 Regen/Repaired (Parts) 147 | . . . 147 . . . . . . . . Core Remaining (%) 80 | 100 . 74 . . . 85 . 63 . . . Volleys Fired 442 | . 7 21 28 10 . . 62 125 115 45 29 Largest 2 | . 2 2 2 2 . . 2 2 2 2 2 Hottest 180 | . 70 70 73 58 . . 98 98 150 180 180 Shots Fired 760 | . 14 42 51 20 . . 110 216 184 79 44 Gun 326 | . 14 42 48 10 . . 43 112 50 . 7 Cannon 418 | . . . 3 10 . . 67 104 130 75 29 Launcher 16 | . . . . . . . . . 4 4 8 Special . | . . . . . . . . . . . . Kinetic 388 | . 7 21 31 20 . . 97 140 69 . 3 Thermal 355 | . 7 21 20 . . . 13 76 111 75 32 Explosive 16 | . . . . . . . . . 4 4 8 Electromagnetic 1 | . . . . . . . . . . . 1 Robot Hit Streak 19 | . 3 4 7 5 . . 8 19 18 8 12 Robot Miss Streak 5 | . 3 2 2 2 . . 4 5 4 3 2 Penetration Max 1 | . . . . . . . . . 1 . 1 Secondary Targets 4 | . . 2 1 . . . 1 . . . . Max Gunslinging Chain 1 | . . 1 1 . . . 1 . . . . Shots Hit Robots 467 | . 7 24 34 11 . . 68 105 138 40 40 Core Hits 345 | . 4 12 14 5 . . 43 52 104 36 75 Critical Kills 5 | . . . . . . . . . 5 . . Critical Parts Destroyed 6 | . . . . . . . . 1 5 . . Critical Strikes 17 | . . . 1 . . . 2 3 11 . . Burn 3 | . . . 1 . . . . 2 . . . Meltdown 2 | . . . . . . . . . 2 . . Destroy 9 | . . . . . . . . 1 8 . . Blast 3 | . . . . . . . 2 . 1 . . Melee Attacks 16 | . . . . . . . . . 8 2 6 Impact . | . . . . . . . . . . . . Slashing . | . . . . . . . . . . . . Piercing . | . . . . . . . . . . . . Sneak Attacks 14 | . . . . . . . . . 6 2 6 Combat Hostiles . | . . . . . . . . . . . . Follow-up Attacks . | . . . . . . . . . . . . Damage Inflicted 13955 | . 68 272 409 204 . . 1584 2118 5210 1648 2442 Guns 3078 | . 68 265 382 96 . . 458 979 624 . 206 Cannons 6355 | . . . 16 108 . . 928 1110 2545 1068 580 Explosions 4478 | . . . . . . . 172 29 2041 580 1656 Melee . | . . . . . . . . . . . . Ramming 44 | . . 7 11 . . . 26 . . . . Kinetic 4324 | . 30 90 213 204 . . 1264 1222 1182 . 119 Thermal 5178 | . 38 175 185 . . . 122 867 2056 1068 667 Explosive 4406 | . . . . . . . 172 29 1969 580 1656 Electromagnetic 3 | . . . . . . . . . 3 . . Impact . | . . . . . . . . . . . . Slashing . | . . . . . . . . . . . . Piercing . | . . . . . . . . . . . . Highest Corruption 13 | . . . 1 1 1 1 1 6 9 11 13 Average Corruption 5 | . . . 1 1 1 1 1 2 4 10 11 Corruption Purged . | . . . . . . . . . . . . Corruption Blocked . | . . . . . . . . . . . . Effects 183 | . . . 6 1 2 2 10 39 33 62 28 Message Errors 37 | . . . . . 1 1 5 8 5 11 6 Matter Fused 41 | . . . 1 1 . 1 1 6 4 19 8 Heat Flow Errors 18 | . . . 2 . . . . 4 2 7 3 Energy Discharges 22 | . . . 2 . . . 2 7 4 6 1 Parts Rejected 3 | . . . . . . . . . . 1 2 Parts Fused 6 | . . . . . . . . 2 2 2 . Data Loss (minor) 23 | . . . 1 . . . 1 5 7 5 4 Data Loss (major) 8 | . . . . . 1 . . 3 1 3 . Misfires 10 | . . . . . . . 1 1 1 5 2 Alerts 5 | . . . . . . . . . 3 . 2 Weapon Failures 10 | . . . . . . . . 3 4 3 . Overload Shots 1 | . . . . . . . . . . . 1 Overflow Damage 224 | . . . . . . . 96 12 78 13 25 Projectiles 114 | . . . . . . . 24 12 78 . . Explosions 104 | . . . . . . . 66 . . 13 25 Melee 6 | . . . . . . . 6 . . . . Knockbacks 27 | . . . . . . . 13 8 6 . . Impact . | . . . . . . . . . . . . Kinetic 26 | . . . . . . . 12 8 6 . . Secondary 1 | . . . . . . . 1 . . . . Self-Inflicted Damage 519 | . . . . . . . 85 . 24 68 342 Shots 20 | . . . . . . . 1 . 1 4 14 Rammed 4 | . . 2 1 . . . 1 . . . . Targets Rammed 4 | . . 2 1 . . . 1 . . . . Kicked . | . . . . . . . . . . . . Crushed . | . . . . . . . . . . . . Highest Temperature 320 | . 90 255 320 . . . 207 237 283 161 58 Average Temperature 77 | . 37 117 132 . . . 54 34 89 73 37 Received Heat Transfer 1903 | . . 177 159 . . . 342 271 606 165 183 Effects 3 | . . . 3 . . . . . . . . Energy Bleed 1 | . . . 1 . . . . . . . . Interference 2 | . . . 2 . . . . . . . . Siege Activations . | . . . . . . . . . . . . Robots Corrupted . | . . . . . . . . . . . . Combat Hostiles . | . . . . . . . . . . . . Parts Fried . | . . . . . . . . . . . . Impact Corruptions 1 | . . . . . . . 1 . . . . Robots Melted 3 | . . . . . . . . 1 2 . . Combat Hostiles 1 | . . . . . . . . . 1 . . Parts Melted 11 | . . 2 2 . . . . . 2 4 1 Heat Transferred 8612 | . 111 481 592 . . . 259 1850 2973 1406 940 Parts Sabotaged . | . . . . . . . . . . . . Parts Stolen . | . . . . . . . . . . . . Parts Stripped . | . . . . . . . . . . . . Power Chain Reactions . | . . . . . . . . . . . . Alert | -11 -10 -10 -9 -9 -9 -8 -8 -8 -7 -7 -7 ------- Run | Yrd Mat Min Mat Min Exi Min Mat Gar Fac Gar Fac Peak Influence 2004 | . 48 120 138 115 . . 307 1731 1235 2004 1271 Initial 1052 | . . 18 2 20 . . . 165 908 864 1052 Average 650 | . 26 46 56 83 . . 168 790 805 1447 1077 Maximum Alert Level 5 | . . . . . . . 1 5 4 5 4 Low Security (%) 34 | 100 100 100 100 100 . 100 50 4 . . . Level 1 9 | . . . . . . . 49 20 . . . Level 2 11 | . . . . . . . . 24 39 . . Level 3 21 | . . . . . . . . 25 44 18 77 Level 4 16 | . . . . . . . . 22 16 47 22 Level 5 6 | . . . . . . . . 2 . 34 . High Security . | . . . . . . . . . . . . Max Security . | . . . . . . . . . . . . Squads Dispatched 22 | . . . 2 . . . 5 . 9 . 6 Investigation 2 | . . . 1 . . . 1 . . . . Extermination 5 | . . . . . . . . . 4 . 1 Reinforcement 8 | . . . 1 . . . 3 . 3 . 1 Assault 3 | . . . . . . . . . 1 . 2 Garrison 4 | . . . . . . . 1 . 1 . 2 Intercept . | . . . . . . . . . . . . Searches Triggered . | . . . . . . . . . . . . Construction Impeded 2 | . . . . . . . 1 . 1 . . Haulers Reinforced 1 | . . . . . . . . . 1 . . Active Scanning Responses . | . . . . . . . . . . . . Cargo Convoy Interrupts 1 | . . . . . . . . . 1 . . Stealth | -11 -10 -10 -9 -9 -9 -8 -8 -8 -7 -7 -7 --------- Run | Yrd Mat Min Mat Min Exi Min Mat Gar Fac Gar Fac Distress Signals 7 | . . . 1 . . . 3 3 . . . Communications Jammed 66 | . . . . . . . . . 60 . 6 Distress Signals 65 | . . . . . . . . . 60 . 5 Times Spotted 198 | . 3 8 11 4 . . 24 47 51 24 26 Peak Tracking Total 11 | . 1 3 3 4 . . 4 5 11 4 6 Tactical Retreats 11 | . . . . . . . . 10 . . 1 Traps | -11 -10 -10 -9 -9 -9 -8 -8 -8 -7 -7 -7 ------- Run | Yrd Mat Min Mat Min Exi Min Mat Gar Fac Gar Fac Traps Triggered 7 | . . . . . . . 2 1 . 3 1 Indirectly . | . . . . . . . . . . . . Trap Hack Attempts . | . . . . . . . . . . . . Triggered . | . . . . . . . . . . . . Disarmed . | . . . . . . . . . . . . Reprogrammed . | . . . . . . . . . . . . Reused 2 | . . . . . . . . . 2 . . Traps Extracted 2 | . . . . . . . . . 2 . . Installed 6 | . . . . . . . . . 6 . . Triggered 2 | . . . . . . . . . 2 . . Most Traps Carried 5 | . . 5 5 5 5 5 5 5 5 1 . Machines | -11 -10 -10 -9 -9 -9 -8 -8 -8 -7 -7 -7 ---------- Run | Yrd Mat Min Mat Min Exi Min Mat Gar Fac Gar Fac Machines Disabled 34 | . . . 1 . . . 2 8 17 5 1 Max in Single Turn 13 | . . . 1 . . . 2 2 13 1 . Garrison Relay 8 | . . . . . . . . 4 . 4 . Phase Generator 1 | . . . . . . . . 1 . . . Machines Repaired . | . . . . . . . . . . . . Machines Dismantled . | . . . . . . . . . . . . Machines Sabotaged . | . . . . . . . . . . . . Overloaded Fab Kills . | . . . . . . . . . . . . Hacking | -11 -10 -10 -9 -9 -9 -8 -8 -8 -7 -7 -7 --------- Run | Yrd Mat Min Mat Min Exi Min Mat Gar Fac Gar Fac Machines Accessed 30 | . 2 1 7 . 2 . 4 4 5 2 3 Terminals 23 | . 2 . 6 . . . 3 4 3 2 3 Fabricators . | . . . . . . . . . . . . Repair Stations 1 | . . . 1 . . . . . . . . Recycling Units 1 | . . . . . . . . . 1 . . Scanalyzers . | . . . . . . . . . . . . Garrison Access 2 | . . . . . . . 1 . 1 . . Total Hacks 69 | . 6 1 25 . 2 . 8 7 14 2 4 Successful 35 | . 5 1 11 . 2 . 2 4 7 2 1 Failed 34 | . 1 . 14 . . . 6 3 7 . 3 Catastrophic 6 | . . . 2 . . . 1 . 1 . 2 Database Lockouts . | . . . . . . . . . . . . Manual 32 | . 6 . 16 . 1 . . . 8 . 1 Terminals 53 | . 6 . 20 . . . 6 7 8 2 4 Fabricators . | . . . . . . . . . . . . Repair Stations 5 | . . . 5 . . . . . . . . Recycling Units 5 | . . . . . . . . . 5 . . Scanalyzers . | . . . . . . . . . . . . Garrison Access 3 | . . . . . . . 2 . 1 . . Terminal Hacks 26 | . 5 1 7 . 2 . 1 4 4 2 . Record 1 | . . . . . 1 . . . . . . Part Schematic 2 | . 2 . . . . . . . . . . Robot Analysis 6 | . 3 . 3 . . . . . . . . Open Door 3 | . . 1 . . . . . 1 . 1 . Branch Access Points 1 | . . . 1 . . . . . . . . Emergency Access Points 2 | . . . . . . . . 1 . 1 . Terminal Index 2 | . . . 1 . . . . . 1 . . Unreport Threat 2 | . . . 1 . . . . . 1 . . Locate Traps 1 | . . . 1 . . . . . . . . Transport Status 1 | . . . . . . . 1 . . . . Recall Investigation 1 | . . . . . . . . . 1 . . Zone Layout 1 | . . . . . . . . . 1 . . Patrol Navigation 1 | . . . . . . . . 1 . . . Security Stations 1 | . . . . . . . . 1 . . . Derelict Proto ID Bank 1 | . . . . . 1 . . . . . . Fabricator Hacks . | . . . . . . . . . . . . Repair Station Hacks 4 | . . . 4 . . . . . . . . Scan Component 2 | . . . 2 . . . . . . . . Repair 2 | . . . 2 . . . . . . . . Recycling Unit Hacks 1 | . . . . . . . . . 1 . . Retrieve Components 1 | . . . . . . . . . 1 . . Scanalyzer . | . . . . . . . . . . . . Garrison Access Hacks 2 | . . . . . . . 1 . 1 . . Unlock Access 2 | . . . . . . . 1 . 1 . . Unauthorized Hacks 2 | . . . . . . . . . 1 . 1 Terminals 1 | . . . . . . . . . . . 1 Operators 1 | . . . . . . . . . . . 1 Fabricators . | . . . . . . . . . . . . Repair Stations . | . . . . . . . . . . . . Recycling Units 1 | . . . . . . . . . 1 . . Mask 1 | . . . . . . . . . 1 . . Scanalyzers . | . . . . . . . . . . . . Garrison Access . | . . . . . . . . . . . . Data Cores Recovered . | . . . . . . . . . . . . Used . | . . . . . . . . . . . . Hacking Detections 25 | . 2 . 7 . . . 4 2 5 2 3 Full Trace Events 2 | . . . 1 . . . 1 . . . . Feedback Events 1 | . . . 1 . . . . . . . . Corruption 1 | . . . 1 . . . . . . . . Feedback Blocked . | . . . . . . . . . . . . Robot Schematics Acquired . | . . . . . . . . . . . . Robots Built . | . . . . . . . . . . . . Authchips . | . . . . . . . . . . . . Time . | . . . . . . . . . . . . Total Robot Build Rating . | . . . . . . . . . . . . Part Schematics Acquired 2 | . 2 . . . . . . . . . . Parts Built . | . . . . . . . . . . . . Authchips . | . . . . . . . . . . . . Time . | . . . . . . . . . . . . Total Part Build Rating . | . . . . . . . . . . . . Parts Repaired 2 | . . . 2 . . . . . . . . Time 52 | . . . 52 . . . . . . . . Parts Recycled . | . . . . . . . . . . . . Recycled Matter . | . . . . . . . . . . . . Retrieved Matter . | . . . . . . . . . . . . Retrieved Components 10 | . . . . . . . . . 10 . . Parts Scanalyzed . | . . . . . . . . . . . . Part Schematics Acquired . | . . . . . . . . . . . . Parts Damaged . | . . . . . . . . . . . . Bothacking | -11 -10 -10 -9 -9 -9 -8 -8 -8 -7 -7 -7 ------------ Run | Yrd Mat Min Mat Min Exi Min Mat Gar Fac Gar Fac Used RIF Installer 3 | . . . . . . . . 1 . 2 . Threat Obfuscator 1 | . . . . . . . . . . 1 . Signal Jammer 1 | . . . . . . . . . . 1 . Robots Hacked 5 | . . . . . . . . . 4 . 1 Non-combat 5 | . . . . . . . . . 4 . 1 Combat . | . . . . . . . . . . . . Robot Hacks Applied 13 | . . . . . . . . . 8 . 5 parse_system 2 | . . . . . . . . . 2 . . find_chute 1 | . . . . . . . . . 1 . . find_recycling 1 | . . . . . . . . . 1 . . ignore_parts 1 | . . . . . . . . . 1 . . purge_threat 7 | . . . . . . . . . 2 . 5 summon_haulers 1 | . . . . . . . . . 1 . . Relay Couplers Released 34 | . . . . . . . . 13 . 21 . Machine Destruction 30 | . . . . . . . . 13 . 17 . Programmers 4 | . . . . . . . . . . 4 . Attached 3 | . . . . . . . . . 1 1 1 Fabnet Peak Effective % . | . . . . . . . . . . . . Robots Rewired 4 | . . . . . . . . . . 4 . Allies Hacked . | . . . . . . . . . . . . Hacks Repelled . | . . . . . . . . . . . . Allies | -11 -10 -10 -9 -9 -9 -8 -8 -8 -7 -7 -7 -------- Run | Yrd Mat Min Mat Min Exi Min Mat Gar Fac Gar Fac Total Allies 10 | . . . . . . . . 2 . 8 . Largest Group 8 | . . . . . . . . 2 1 8 5 Highest-Rated Group 395 | . . . . . . . . 51 20 395 216 Highest-Rated Ally 95 | . . . . . . . . 31 20 95 62 Total Orders . | . . . . . . . . . . . . Ally Attacks 77 | . . . . . . . . 15 2 45 15 Total Damage 2123 | . . . . . . . . 199 63 1559 302 Kills 22 | . . . . . . . . 4 1 12 5 Allies Corrupted . | . . . . . . . . . . . . Allies Melted . | . . . . . . . . . . . . Intel | -11 -10 -10 -9 -9 -9 -8 -8 -8 -7 -7 -7 ------- Run | Yrd Mat Min Mat Min Exi Min Mat Gar Fac Gar Fac Robot Analysis Total 6 | . 3 . 3 . . . . . . . . Derelict Logs Recovered 2 | . . 2 . . . . . . . . . Drone Launches . | . . . . . . . . . . . . Drone Recoveries . | . . . . . . . . . . . . Exploration | -11 -10 -10 -9 -9 -9 -8 -8 -8 -7 -7 -7 ------------- Run | Yrd Mat Min Mat Min Exi Min Mat Gar Fac Gar Fac Turns Passed 9756 | 82 199 1266 531 183 369 379 984 1891 1556 1576 740 Spaces Moved 3644 | 53 107 402 230 93 226 231 346 754 457 478 267 Core 16 | 16 . . . . . . . . . . . Treads 3305 | 37 107 402 230 93 226 231 346 754 457 222 200 Legs 187 | . . . . . . . . . . 173 14 Wheels 48 | . . . . . . . . . . . 48 Hover 77 | . . . . . . . . . . 77 . Flight 11 | . . . . . . . . . . 6 5 Fastest Speed 50 | 50 160 160 163 163 163 163 160 160 163 240 130 Average Speed 203 | 127 160 178 166 163 163 163 164 199 245 286 230 Slowest Speed 690 | 160 160 240 240 163 163 163 245 240 410 690 495 Overloaded Moves . | . . . . . . . . . . . . Propulsion Burnouts . | . . . . . . . . . . . . Robots Hopped . | . . . . . . . . . . . . Cave-ins Triggered . | . . . . . . . . . . . . Exploration Rate (%) 41 | 4 23 82 22 31 62 60 29 89 14 66 11 Regions Visited 11 Branch Regions 4 Pre-discovered Areas 2 | . . 1 . . 1 . . . . . . Known Exits Taken 3 | . . . 1 . . . 1 . 1 . . Unknown Exits Taken 6 | 1 1 1 . 1 1 1 . . . . . Scrap Searched 3 | . . 1 . 1 . 1 . . . . . Spaces Dug 24 | . . . . . . . . 2 . 22 . Terrain Destroyed 511 | . . . . . . . 23 147 97 64 180 Melee . | . . . . . . . . . . . . Projectile 11 | . . . . . . . 5 2 1 . 3 AOE 500 | . . . . . . . 18 145 96 64 177 Terrain Rammed . | . . . . . . . . . . . . Walls Destroyed . | . . . . . . . . . . . . Machines Disabled . | . . . . . . . . . . . . Actions | -11 -10 -10 -9 -9 -9 -8 -8 -8 -7 -7 -7 --------- Run | Yrd Mat Min Mat Min Exi Min Mat Gar Fac Gar Fac Total 5222 | 66 122 913 330 105 228 234 654 936 703 599 332 Wait 785 | . . 470 56 . . . 210 14 24 . 11 Move 3635 | 52 106 401 229 92 225 230 346 753 457 477 267 Hop . | . . . . . . . . . . . . Pick Up 93 | 10 4 7 7 3 1 2 14 16 22 7 . Fast Attach 43 | 2 2 . 3 . . . 3 1 16 10 6 Attach 41 | 2 2 . 4 . . 2 7 8 9 2 5 Detach 7 | . . . . . 2 . . . 3 . 2 Swap 45 | . . 4 1 . . . 2 7 14 11 6 Drop 71 | . 1 8 1 . . . 9 12 29 11 . Fire 442 | . 7 21 28 10 . . 62 125 115 45 29 Melee 16 | . . . . . . . . . 8 2 6 Ram . | . . . . . . . . . . . . Kick . | . . . . . . . . . . . . Crush 4 | . . 2 1 . . . 1 . . . . Escape Stasis 17 | . . . . . . . . . . 17 . Rewire 17 | . . . . . . . . . . 17 . Trap 6 | . . . . . . . . . 6 . . Miscellaneous . | . . . . . . . . . . . . Route ------- -11/Scrapyard -10/Materials -10/Mines -9/Materials (discovered 2 exits: *Min x2) -9/Mines -9/Exiles -8/Mines -8/Materials (discovered 2 exits: Fac / Gar) -8/Garrison (discovered 3 exits: *Fac x3) -7/Factory -7/Garrison (discovered 2 exits: *Fac x2) -7/Factory (discovered 2 exits: [*Fac] / [*Sto]) History --------- Turn | Location | Event 5 | -11/Scrapyard | Discovered new exit (range 16) 83 | -11/Scrapyard | Entered Materials 228 | -10/Materials | Discovered new exit (range 9) 282 | -10/Materials | Entered Mines 296 | -10/Mines | Met a Derelict bent on vengeance 322 | -10/Mines | Build established: Mutant 352 | -10/Mines | Learned Materials trap positions 358 | -10/Mines | Met a Derelict who couldn't figure out how to use a Trap Extractor 1135 | -10/Mines | Found a hidden stash of uninstalled traps 1272 | -10/Mines | Learned location of Zion (-6) 1497 | -10/Mines | Discovered new exit (range 12) 1548 | -10/Mines | Entered Materials 1548 | -9/Materials | Evolved 2 slots: Propulsion x1, Utility x1 1549 | -9/Materials | Loaded intel: 10 trap records 1608 | -9/Materials | Repaired Lgt. Treads 1635 | -9/Materials | Repaired Lgt. Treads 1715 | -9/Materials | Identified exit to Mines 2079 | -9/Materials | Entered Mines 2256 | -9/Mines | Deemed a non-threat by the Exiles lab entrance 2256 | -9/Mines | Discovered new exit (range 5) 2262 | -9/Mines | Entered Exiles 2303 | -9/Exiles | Met 8R-AWN 2330 | -9/Exiles | Met EX-HEX 2379 | -9/Exiles | Met EX-BIN 2399 | -9/Exiles | Aligned with FarCom system 2400 | -9/Exiles | Given EX-Vault access code 2438 | -9/Exiles | Opened EX-Vault 2449 | -9/Exiles | Found YOLO Cannon 2483 | -9/Exiles | Warned to stay clear of 0b10 Research branches 2530 | -9/Exiles | Met EX-DEC 2610 | -9/Exiles | Discovered new exit (range 14) 2631 | -9/Exiles | Left Exiles lab with YOLO Cannon 2631 | -9/Exiles | Entered Mines 2938 | -8/Mines | Build established: Skirmisher 2981 | -8/Mines | Discovered new exit (range 13) 3010 | -8/Mines | Entered Materials 3010 | -8/Materials | Evolved 2 slots: Utility x2 3587 | -8/Materials | Discovered new exit (range 9) 3914 | -8/Materials | Garrison activated, responded to threat 3994 | -8/Materials | Identified exit to Garrison 3994 | -8/Materials | Entered Garrison 4053 | -8/Garrison | Assembled breached garrison interior 4124 | -8/Garrison | Installed Relay Interface Framework 4254 | -8/Garrison | Destroyed 7 combat bots 4389 | -8/Garrison | Garrison Relay disabled 4492 | -8/Garrison | Build established: Scavenger-Mutant 4559 | -8/Garrison | Phase Generator disabled 4773 | -8/Garrison | Lost 3 parts (1p2n) 4837 | -8/Garrison | Garrison Relay disabled 4872 | -8/Garrison | Discovered new exit (range 14) 4939 | -8/Garrison | Rescued a captive Derelict 4940 | -8/Garrison | Rescued a captive Derelict 5161 | -8/Garrison | Discovered new exit (range 14) 5223 | -8/Garrison | Garrison Relay disabled 5523 | -8/Garrison | Discovered new exit (range 4) 5606 | -8/Garrison | Garrison Relay disabled 5641 | -8/Garrison | Learned Factory security intel 5885 | -8/Garrison | Entered Factory 5885 | -7/Factory | Accompanied by 1 ally 5885 | -7/Factory | Evolved 2 slots: Utility x2 6685 | -7/Factory | First assault squad dispatched 6815 | -7/Factory | Found Prototype Launcher 6815 | -7/Factory | Identified Rocket Array 6820 | -7/Factory | Found Rocket Array 6824 | -7/Factory | Found Rocket Array 7165 | -7/Factory | Cargo convoy interrupted 7175 | -7/Factory | Garrison activated, responded to threat 7208 | -7/Factory | Lost 3 parts (1n1u1w) 7218 | -7/Factory | Destroyed 10 combat bots 7249 | -7/Factory | Found Prototype Device 7249 | -7/Factory | Identified Exp. ECM Suite 7441 | -7/Factory | Identified exit to Garrison 7441 | -7/Factory | Entered Garrison 7471 | -7/Garrison | Build established: Mutant 7517 | -7/Garrison | Triggered checkpoint 7570 | -7/Garrison | Garrison Relay disabled 7727 | -7/Garrison | Triggered checkpoint 7732 | -7/Garrison | Triggered checkpoint 7751 | -7/Garrison | Triggered checkpoint 7844 | -7/Garrison | System corruption reached 10% 8000 | -7/Garrison | Rescued a captive Derelict 8003 | -7/Garrison | Rescued a captive Derelict 8153 | -7/Garrison | Found embedded Infiltrators 8166 | -7/Garrison | Discovered new exit (range 12) 8173 | -7/Garrison | Triggered checkpoint 8253 | -7/Garrison | Triggered checkpoint 8261 | -7/Garrison | Core integrity fell below 50% 8265 | -7/Garrison | Garrison Relay disabled 8477 | -7/Garrison | Triggered checkpoint 8519 | -7/Garrison | Garrison Relay disabled 8569 | -7/Garrison | Build established: Bothacker-Mutant 8661 | -7/Garrison | Triggered checkpoint 8836 | -7/Garrison | Garrison Relay disabled 8849 | -7/Garrison | Triggered checkpoint 8902 | -7/Garrison | Expanded RIF knowledge: Signal Jamming 8955 | -7/Garrison | Discovered new exit (range 11) 8979 | -7/Garrison | Expanded RIF knowledge: Threat Obfuscation 9017 | -7/Garrison | Entered Factory 9017 | -7/Factory | Accompanied by 5 allies 9121 | -7/Factory | Discovered new exit (range 6) 9334 | -7/Factory | Discovered new exit (range 7) 9417 | -7/Factory | First assault squad dispatched 9541 | -7/Factory | Lost 3 allies 9588 | -7/Factory | Garrison activated, responded to threat 9618 | -7/Factory | Core integrity fell below 20% 9654 | -7/Factory | Destroyed 10 combat bots 9664 | -7/Factory | Lost 7 parts (3n3u1w) 9757 | -7/Factory | Destroyed by Y-54 Guardian with Gatling Laser Last Messages --------------- >>purge_threat Purged threat record, alert level lowered. 09737_ Sneak attack on O-24 Administrator. 09737_ Jacked O-24 Administrator... >>recall_investigation No investigations on record. 09740_ Sneak attack on O-24 Administrator. 09740_ Jacked O-24 Administrator... >>purge_threat Purged minor threat record, alert level lowered. 09741_ Sneak attack on O-24 Administrator. 09741_ Jacked O-24 Administrator... >>purge_threat Purged minor threat record, alert level lowered. 09744_ Imp. Cooling System destroyed. 09747_ Com. Wheel destroyed. 09751_ Slug penetrates Y-54 Guardian. 09755_ System corrupted: Gatling Laser rejected. 09755_ Slug penetrates Y-54 Guardian. 09755_ R-06 Scavenger destroyed. Map ----- +----------------------------------------------------+ | ??????" # # #% # #????????????????????? | | ?????"" # # # #######??????##????????????? | | ?????"" # #######????????? #????????????? | | ????""" # / ?? ?????????????? | | """" ####???????? !?????????????? | | # # # ########????? #?????????????? | | | %/ # #????? #?????????????? | | * % # ###### ##????????????? | | ### ## ## ## # #????????????? | | ??????#?# # ## # #????????????? | | ????????# # ## +????????????? | | ?????????# = # ## ##### #????????????? | | ?????????# ## ! ### #???# #????????????? | | ?????????# #### #####???# #????????????? | | ????###+###### #??# #???????# #????????????? | | ????# # ######## #???????+ #????????????? | | ????# ""G"" # #???????# #????????????? | | ????# " " # #???????# #????????????? | | ????# " " # ^ ""#????????o #????????????? | | ????# ! + % ""#???????? #????????????? | | ????# """ ## ^ T"#???????? #????????????? | | ????# """ ### ^ ""#???????? #????????????? | | ????# """ #??# ""#???????? #????????????? | | ????#! ???# #???????? ????????????? | | ????###?#####???# ######## #???????????? | | ????????????????+ @Y % #???????????? | | ????????????????# ############## #???????????? | | ????????????????# #??????????????????????????????? | | ????????????????# #??????????????????????????????? | | ????????????????# #??????????????????????????????? | | ????????????????# ???????????????????????????????? | | ????????????????# ???????????????????????????????? | | ????????????????? ???????????????????????????????? | | ?????????????????????????????????????????????????? | | ?????????????????????????????????????????????????? | | ?????????????????????????????????????????????????? | | ?????????????????????????????????????????????????? | | ?????????????????????????????????????????????????? | | ?????????????????????????????????????????????????? | | ?????????????????????????????????????????????????? | | ?????????????????????????????????????????????????? | | ?????????????????????????????????????????????????? | | ?????????????????????????????????????????????????? | | ?????????????????????????????????????????????????? | | ?????????????????????????????????????????????????? | | ?????????????????????????????????????????????????? | | ?????????????????????????????????????????????????? | | ?????????????????????????????????????????????????? | | ?????????????????????????????????????????????????? | | ?????????????????????????????????????????????????? | +----------------------------------------------------+ Best States ------------- Heat Dissipation 138 Energy Generation 19 Energy Capacity 490 Matter Stores 300 Matter Capacity 300 Sight Range 16 Terrain Scan Range 16 Terrain Scan Density 110 ECM Strength 3 Jamming Range 14 Armor Coverage 300 Power Shielding 66 Utility Shielding 66 Evasion (%) 50 Recoil Reduction 3 Defensive Hacking 10 Relay Coupler Types 1 Relay Coupler Value 57 Trap Extractor Capacity 6 Item Schematics ----------------- Huge Storage Unit | -10/Materials | Hacked Seismic Detector | -10/Materials | Hacked Robot Schematics ------------------ None Fabricated ------------ Nothing Alien Tech Used ----------------- None Achievements -------------- None Challenges ------------ None Game ------ Seed CannonPoweredMantle Manual? 0 Play Time 00:59:04 Cumulative 282.4 hours Start 2024.04.27 @ 05:07:22 End 2024.04.27 @ 06:09:18 Sessions 1 Manual Loads 0 Difficulty Rogue Special Mode None Game No. 211 Rogue 211 Adventurer 0 Explorer 0 Win Type - Total 10 Types 6/0/3/1/0/0/0/0/0 Lore% 77 Gallery% 84 Achievement% 71 Wizard Run 0 Options --------- Layout 2 ASCII 1 Keyboard 0 Movement Mouse Keybinds 0 Fullscreen 2 Font 24/Smallcaps Map View 50x44 Zoom Use 0% Tactical HUD 1 Map Filters NONE Filters NONE Steam 1 RUN: 1fbc3b9c-7128-49b5-9a74-1b1b03929437